Cogmind - Beta 13 @@@ ROGUE MODE // 2024.07.31 @ 16:31:43 Player: ZergFTW Result: Destroyed by S-10 Pest with Light Assault Rifle Performance ------------- Evolutions (0) 0 Regions Visited (1) 200 Robots Destroyed (28) 140 Value Destroyed (662) 662 Prototype IDs (0) 0 Alien Tech Used (0) 0 Bonus (0) 0 TOTAL SCORE: 1002 Bonus ------- None Cogmind --------- Core Integrity 0/250 Matter 235/300 Energy 250/250 System Corruption 0% Temperature Cool (0) Movement Treading (240) Ox1 Location -10/Materials Parts ------- > --- POWER (1) -------- Ion Engine > --- PROPULSION (2) --- Light Treads > --- UTILITY (2) ------ Large Storage Unit Visual Processing Unit > --- WEAPON (2) ------- Assault Rifle Assault Rifle > --- INVENTORY (15) --- Ion Engine Light Treads Light Treads Light Treads Wheel High-capacity Matter Pod (87) Structural Scanner Sensor Array Assault Rifle Assault Rifle Assault Rifle Assault Rifle Datajack Mining Laser Peak State ------------ > --- POWER ------------ Ion Engine > --- PROPULSION ------- Light Treads Light Treads > --- UTILITY ---------- Large Storage Unit Visual Processing Unit > --- WEAPON ----------- Assault Rifle Assault Rifle > --- INVENTORY -------- Ion Engine Ion Engine Ion Engine Light Treads Light Treads Wheel Compact Wheel Medium Laser Datajack Mining Laser [Rating: 9] Favorites ----------- Power Ion Engine Engine Ion Engine Propulsion Light Treads Treads Light Treads Utility Visual Processing Unit Storage Large Storage Unit Processor Visual Processing Unit Weapon Assault Rifle Ballistic Gun Assault Rifle Special Weapon Mining Laser Build | -11 -10 ------- Run | Yrd Mat Slots Evolved . | . . Power . | . . Propulsion . | . . Utility . | . . Weapon . | . . Parts Attached 21 | 6 15 Power 5 | 1 4 Engine 5 | 1 4 Core . | . . Reactor . | . . Propulsion 4 | 2 2 Treads 4 | 2 2 Leg . | . . Wheel . | . . Hover . | . . Flight . | . . Utility 3 | 1 2 Device . | . . Storage 2 | 1 1 Processor 1 | . 1 Hackware . | . . Protection . | . . Artifact . | . . Weapon 9 | 2 7 Energy Gun . | . . Energy Cannon . | . . Ballistic Gun 7 | 2 5 Ballistic Cannon . | . . Launcher . | . . Special Weapon 2 | . 2 Impact Weapon . | . . Slashing Weapon . | . . Piercing Weapon . | . . Special Melee Weapon . | . . Unidentified Prototypes . | . . Parts Lost 2 | . 2 Power . | . . Propulsion 1 | . 1 Utility . | . . Weapon 1 | . 1 Highest Loss Streak 1 | . 1 To Critical Strikes . | . . Average Slot Usage (%) 99 | . 99 Engine 14 | . 14 Treads 28 | . 28 Storage 14 | . 14 Processor 13 | . 13 Ballistic Gun 27 | . 27 Naked Turns . | . . Heaviest Build 29 | 12 29 Greatest Support 40 | 40 40 Greatest Overweight (x) 3 | 3 . Average Overweight (x) . | . . Largest Inventory Capacity 15 | 8 15 Average Capacity 13 | 7 13 Most Carried 15 | 5 15 Average Carried 11 | 3 11 Final Capacity 15 | 8 15 Final Carried 14 | 5 14 Class Distribution -------------------- 100% | Mutant Dominant Class ---------------- Mutant | -10/Materials Resources | -11 -10 ----------- Run | Yrd Mat Matter Collected 1060 | 223 837 Remotely . | . . Salvage Created 824 | 11 813 Parts 73 | 3 70 Haulers Intercepted 2 | . 2 Recyclers Shooed 1 | . 1 Parts Field Recycled . | . . Retrieved Matter . | . . Parts Self-Destructed . | . . Prevented . | . . Kills | -11 -10 ------- Run | Yrd Mat Combat Hostiles Destroyed 17 | . 17 Guns 16 | . 16 AOE 1 | . 1 Classes Destroyed 8 | 1 7 Worker 1 | . 1 Builder 2 | . 2 Tunneler 2 | 1 1 Hauler 2 | . 2 Operator 1 | . 1 Watcher 3 | . 3 Swarmer 3 | . 3 Grunt 14 | . 14 Best Kill Streak 5 | 1 5 Combat Bots Only 5 | . 5 Max Kills in Single Turn 2 | 1 2 Gunslinging 1 | . 1 Exploded 1 | . 1 Melee . | . . Uniques/NPCs Destroyed . | . . Combat | -11 -10 -------- Run | Yrd Mat Hostile Shots Fired 107 | . 107 Missed 21 | . 21 Damage Taken 980 | . 980 Core 256 | . 256 Absorbed by Shields . | . . Core Remaining (%) 100 | 100 . Volleys Fired 100 | 1 99 Largest 2 | 2 2 Hottest 100 | 40 100 Shots Fired 181 | 2 179 Gun 176 | 2 174 Cannon . | . . Launcher . | . . Special 5 | . 5 Kinetic 176 | 2 174 Thermal 5 | . 5 Explosive . | . . Electromagnetic . | . . Robot Hit Streak 10 | 1 10 Robot Miss Streak 7 | . 7 Penetration Max . | . . Secondary Targets 1 | . 1 Max Gunslinging Chain 1 | . 1 Shots Hit Robots 98 | 1 97 Core Hits 44 | 1 43 Critical Kills . | . . Critical Parts Destroyed . | . . Critical Strikes . | . . Melee Attacks . | . . Impact . | . . Slashing . | . . Piercing . | . . Sneak Attacks . | . . Combat Hostiles . | . . Follow-up Attacks . | . . Damage Inflicted 1400 | 10 1390 Guns 1332 | 10 1322 Cannons . | . . Explosions 68 | . 68 Melee . | . . Ramming . | . . Kinetic 1332 | 10 1322 Thermal 68 | . 68 Explosive . | . . Electromagnetic . | . . Impact . | . . Slashing . | . . Piercing . | . . Highest Corruption . | . . Average Corruption . | . . Corruption Purged . | . . Corruption Blocked . | . . Overload Shots . | . . Overflow Damage 43 | . 43 Projectiles . | . . Explosions 43 | . 43 Melee . | . . Knockbacks . | . . Impact . | . . Kinetic . | . . Secondary . | . . Self-Inflicted Damage . | . . Shots . | . . Rammed . | . . Targets Rammed . | . . Kicked . | . . Crushed . | . . Highest Temperature 40 | . 40 Average Temperature 15 | . 15 Received Heat Transfer 375 | . 375 Siege Activations . | . . Robots Corrupted . | . . Combat Hostiles . | . . Parts Fried . | . . Impact Corruptions . | . . Robots Melted . | . . Combat Hostiles . | . . Parts Melted . | . . Heat Transferred 50 | . 50 Parts Sabotaged . | . . Parts Stolen . | . . Parts Stripped . | . . Power Chain Reactions . | . . Alert | -11 -10 ------- Run | Yrd Mat Peak Influence 292 | 5 292 Initial 3 | . 3 Average 149 | . 158 Maximum Alert Level 1 | . 1 Low Security (%) 75 | 100 74 Level 1 24 | . 25 Level 2 . | . . Level 3 . | . . Level 4 . | . . Level 5 . | . . High Security . | . . Max Security . | . . Squads Dispatched 6 | . 6 Investigation 4 | . 4 Extermination . | . . Reinforcement 2 | . 2 Assault . | . . Garrison . | . . Intercept . | . . Searches Triggered . | . . Construction Impeded . | . . Haulers Reinforced . | . . Active Scanning Responses . | . . Cargo Convoy Interrupts . | . . Stealth | -11 -10 --------- Run | Yrd Mat Distress Signals 1 | . 1 Communications Jammed . | . . Distress Signals . | . . Times Spotted 32 | . 32 Peak Tracking Total 3 | . 3 Tactical Retreats . | . . Traps | -11 -10 ------- Run | Yrd Mat Traps Triggered . | . . Indirectly . | . . Trap Hack Attempts . | . . Triggered . | . . Disarmed . | . . Reprogrammed . | . . Reused . | . . Traps Extracted . | . . Installed . | . . Triggered . | . . Machines | -11 -10 ---------- Run | Yrd Mat Machines Disabled 5 | . 5 Max in Single Turn 5 | . 5 Machines Repaired . | . . Machines Dismantled . | . . Machines Sabotaged . | . . Overloaded Fab Kills . | . . Hacking | -11 -10 --------- Run | Yrd Mat Machines Accessed 6 | . 6 Terminals 4 | . 4 Fabricators . | . . Repair Stations . | . . Recycling Units 2 | . 2 Scanalyzers . | . . Garrison Access . | . . Total Hacks 21 | . 21 Successful 9 | . 9 Failed 12 | . 12 Catastrophic . | . . Database Lockouts . | . . Manual 17 | . 17 Terminals 17 | . 17 Fabricators . | . . Repair Stations . | . . Recycling Units 4 | . 4 Scanalyzers . | . . Garrison Access . | . . Terminal Hacks 1 | . 1 Branch Access Points 1 | . 1 Fabricator Hacks . | . . Repair Station Hacks . | . . Recycling Unit Hacks 2 | . 2 Report Inventory 2 | . 2 Scanalyzer . | . . Garrison Access Hacks . | . . Unauthorized Hacks 6 | . 6 Terminals 4 | . 4 Assimilate 1 | . 1 Botnet 3 | . 3 Fabricators . | . . Repair Stations . | . . Recycling Units 2 | . 2 Tunnel 2 | . 2 Scanalyzers . | . . Garrison Access . | . . Data Cores Recovered . | . . Used . | . . Hacking Detections 4 | . 4 Full Trace Events 2 | . 2 Feedback Events . | . . Feedback Blocked . | . . Robot Schematics Acquired . | . . Robots Built . | . . Authchips . | . . Time . | . . Total Robot Build Rating . | . . Part Schematics Acquired . | . . Parts Built . | . . Authchips . | . . Time . | . . Total Part Build Rating . | . . Parts Repaired . | . . Time . | . . Parts Recycled . | . . Recycled Matter . | . . Retrieved Matter . | . . Retrieved Components . | . . Parts Scanalyzed . | . . Part Schematics Acquired . | . . Parts Damaged . | . . Bothacking | -11 -10 ------------ Run | Yrd Mat Used RIF Installer . | . . Robots Hacked . | . . Non-combat . | . . Combat . | . . Robot Hacks Applied . | . . Relay Couplers Released . | . . Fabnet Peak Effective % . | . . Robots Rewired . | . . Allies Hacked . | . . Hacks Repelled . | . . Allies | -11 -10 -------- Run | Yrd Mat Total Allies . | . . Largest Group . | . . Highest-Rated Group . | . . Highest-Rated Ally . | . . Total Orders . | . . Ally Attacks . | . . Total Damage . | . . Kills . | . . Allies Corrupted . | . . Allies Melted . | . . Intel | -11 -10 ------- Run | Yrd Mat Robot Analysis Total . | . . Derelict Logs Recovered . | . . Drone Launches . | . . Drone Recoveries . | . . Exploration | -11 -10 ------------- Run | Yrd Mat Turns Passed 1477 | 79 1398 Spaces Moved 685 | 40 645 Core 14 | 14 . Treads 671 | 26 645 Legs . | . . Wheels . | . . Hover . | . . Flight . | . . Fastest Speed 50 | 50 160 Average Speed 159 | 157 160 Slowest Speed 200 | 200 160 Overloaded Moves . | . . Propulsion Burnouts . | . . Robots Hopped . | . . Cave-ins Triggered . | . . Exploration Rate (%) 43 | 4 83 Regions Visited 1 Branch Regions . Pre-discovered Areas 2 | . 2 Known Exits Taken . | . . Unknown Exits Taken 1 | 1 . Scrap Searched . | . . Spaces Dug 5 | . 5 Terrain Destroyed 24 | . 24 Melee . | . . Projectile 5 | . 5 AOE 19 | . 19 Terrain Rammed . | . . Walls Destroyed . | . . Machines Disabled . | . . Actions | -11 -10 --------- Run | Yrd Mat Total 873 | 51 822 Wait 44 | . 44 Move 684 | 39 645 Hop . | . . Pick Up 15 | 5 10 Fast Attach 7 | 6 1 Attach 1 | . 1 Detach . | . . Swap 13 | . 13 Drop 9 | . 9 Fire 100 | 1 99 Melee . | . . Ram . | . . Kick . | . . Crush . | . . Escape Stasis . | . . Rewire . | . . Trap . | . . Miscellaneous . | . . Route ------- -11/Scrapyard -10/Materials (discovered 3 exits: [*Mat x2] / *Min) History --------- Turn | Location | Event 26 | -11/Scrapyard | Discovered new exit (range 16) 80 | -11/Scrapyard | Entered Materials 178 | -10/Materials | Identified exit to Mines 308 | -10/Materials | Build established: Mutant 581 | -10/Materials | Discovered new exit (range 10) 742 | -10/Materials | Discovered new exit (range 3) 764 | -10/Materials | Core integrity fell below 50% 1338 | -10/Materials | Core integrity fell below 20% 1478 | -10/Materials | Destroyed by S-10 Pest with Light Assault Rifle Last Messages --------------- 01266_ K-01 Serf collects debris. 01267_ U-05 Engineer lays Concrete. 01268_ K-01 Serf collects debris. 01268_ U-05 Engineer lays Concrete. 01270_ K-01 Serf collects debris. 01271_ U-05 Engineer lays Concrete. 01271_ U-05 Engineer destroyed. 01272_ K-01 Serf collects debris. 01277_ Dropped Med. Laser. 01278_ Acquired Structural Scanner. 01278_ K-01 Serf collects debris. 01280_ Acquired 11 matter. 01284_ K-01 Serf collects debris. 01345_ S-10 Pest destroyed. 01357_ Acquired 18 matter. 01361_ U-05 Engineer lays Concrete. 01362_ K-01 Serf collects debris. 01421_ Dropped Ion Engine. 01459_ W-16 Scout destroyed. 01475_ Lgt. Treads destroyed. Map ----- +----------------------------------------------------+ | """"" #??# """ #????##!! !### = | | """"" #??# """ !#?????######?# * #####+##+ | | """"" #??# #????????????# ^^##+####### | | #??# #?????????#### ##% ## "T | | * #??########?????????#" [ =# "" **## | | ! !#???????????????????#"" *="="Y **## | | ##########???????????????????#!! #["" ## | | ?????????????????????????????#"" > # ## | | ?????????????????????????????#!! # ###### | | ?????????????????????????????#"" ########????? | | ?????????????????????????????#" #???????????? | | ???????????????????############## ##########???? | | ???????????????????# """ """ # # #??## | | ???????????????????# """ """ + + #??#* | | ???????????????????# """ """ * # # #???# | | ???????????????????# # # #???# | | ???????????????????# * # # """ #???# | | ???????????????????############## # """ #???? | | ????????????????????????????????# # """ #???? | | ??????????##+#################### # """ #???? | | ?????????? s # #???? | | ?????????? ! ^ ############## | | ??????????? !%s == #?????????# | | ????????????????## == #?????????# | | ?????????????????# == #?????????# | | ?????????????????# @""" """ #?????????# "" | | ?????????????????# """ """ #?????????# "T | | ?????????????????# """ """ #?????????# "" | | ?????????????? s +?????????# | | ????????????""" # #?????????#### | | ?????????????"??+ #????????????? | | ????????????????####### #????????????? | | ??????????????????????###+###########????????????? | | ?????????????????????????????????????????????????? | | ?????????????????????????????????????????????????? | | ?????????????????????????????????????????????????? | | ?????????????????????????????????????????????????? | | ?????????????????????????????????????????????????? | | ?????????????????????????????????????????????????? | | ?????????????????????????????????????????????????? | | ?????????????????????????????????????????????????? | | ?????????????????????????????????????????????????? | | ?????????????????????????????????????????????????? | | ?????????????????????????????????????????????????? | | ?????????????????????????????????????????????????? | | | | | | | | | | | +----------------------------------------------------+ Best States ------------- Heat Dissipation 25 Energy Generation 10 Energy Capacity 250 Matter Stores 300 Matter Capacity 300 Sight Range 18 Terrain Scan Density 10 Evasion (%) 40 Recoil Reduction 2 Item Schematics ----------------- None Robot Schematics ------------------ None Fabricated ------------ Nothing Alien Tech Used ----------------- None Achievements -------------- None Challenges ------------ None Game ------ Seed MiniLightpackSegregator Manual? 0 Play Time 00:13:47 Cumulative 116.0 hours Start 2024.07.31 @ 16:19:35 End 2024.07.31 @ 16:31:43 Sessions 1 Manual Loads 0 Difficulty Rogue Special Mode None Game No. 69 Rogue 68 Adventurer 1 Explorer 0 Win Type - Total 1 Types 1/0/0/0/0/0/0/0/0 Lore% 53 Gallery% 50 Achievement% 48 Wizard Run 0 Options --------- Layout 1 ASCII 0 Keyboard 0 Movement Mouse Keybinds 0 Fullscreen 1 Font 24/Proggy Map View 76x35 Zoom Use 0% Tactical HUD 1 Map Filters NONE Filters NONE Steam 1 RUN: 79555d37-06c3-4f1d-81aa-02d6d734c92a